bitfinex-derivatives/quotes_SOLF0:USTF0_20250416
["timestamp","ask_amount","ask_price","bid_price","bid_amount"]
[1744798793801,2.022,125.58,125.5,50.62840694]
[1744798793998,2.022,125.58,125.5,50.5732198]
[1744798794198,2.022,125.58,125.54,7.966]
[1744798795709,2.022,125.58,125.53,0.05449416]
[1744798796103,9.9862,125.58,125.53,8.02089416]
[1744798796605,2.022,125.58,125.53,8.02089416]
[1744798796804,7.9647,125.57,125.53,0.05449416]
[1744798797510,7.965,125.56,125.53,0.05449416]
[1744798798011,2.022,125.58,125.53,0.05449416]
[1744798798512,9.9858,125.58,125.53,8.02089416]
[1744798798706,7.9638,125.58,125.53,8.02089416]
[1744798799104,7.9644,125.57,125.53,8.02089416]
[1744798799309,33.5,125.59,125.53,8.02089416]
[1744798799713,7.964,125.58,125.54,7.9661]
[1744798799913,7.964,125.58,125.53,0.05449416]
[1744798800513,33.5,125.59,125.53,0.05449416]
[1744798801114,7.964,125.58,125.53,0.05449416]
[1744798801415,7.964,125.58,125.54,7.9658]
[1744798801813,7.9643,125.57,125.53,0.05449416]
[1744798802009,33.5,125.59,125.53,0.05449416]
[1744798802010,50.5732198,125.59,125.53,0.05449416]
[1744798802717,7.9655,125.56,125.53,0.05449416]
[1744798802915,50.5732198,125.59,125.53,0.05449416]
[1744798803214,7.964,125.58,125.53,0.05449416]
[1744798803913,7.9643,125.57,125.54,7.9658]
[1744798804412,7.9639,125.58,125.54,7.9658]
[1744798804918,33.5,125.59,125.54,7.9658]
[1744798805116,7.964,125.58,125.54,7.9658]
[1744798805516,33.5,125.59,125.53,8.02089416]
[1744798805715,44.13091882,125.59,125.53,8.02089416]
[1744798806316,33.5,125.59,125.53,8.02089416]
[1744798806516,44.13091882,125.59,125.53,8.02089416]
[1744798806817,7.9645,125.57,125.54,7.9661]
[1744798807318,7.9639,125.58,125.54,7.9661]
[1744798807823,44.13091882,125.59,125.53,0.05449416]
[1744798808218,7.9659,125.55,125.53,0.05449416]
[1744798808419,44.13091882,125.59,125.53,0.05449416]
[1744798808621,10.63091882,125.57,125.53,0.05449416]
[1744798808819,7.9653,125.56,125.53,0.05449416]
[1744798809020,10.63091882,125.57,125.53,0.05449416]
[1744798809217,10.63091882,125.58,125.53,0.05449416]
[1744798809423,44.13091882,125.59,125.53,0.05449416]
[1744798809824,7.9646,125.57,125.53,0.05449416]
[1744798810123,44.13091882,125.59,125.53,0.05449416]
[1744798810324,7.9662,125.54,125.53,0.05449416]
[1744798810521,44.13091882,125.55,125.47,37.7135]
[1744798810724,10.63091882,125.51,125.44,33.5]
[1744798810924,18.59941882,125.51,125.47,7.9706]
[1744798811127,10.63091882,125.51,125.47,7.9706]
[1744798811425,7.9688,125.5,125.46,7.9709]
[1744798811629,8.02026854,125.5,125.48,0.05092834]
[1744798812026,7.9693,125.49,125.48,0.05092834]
[1744798812225,0.05146854,125.5,125.48,0.05092834]
[1744798813625,7.9693,125.49,125.48,0.05092834]
[1744798814426,8.02046854,125.5,125.48,0.05092834]
[1744798815129,0.05146854,125.5,125.48,0.05092834]
[1744798815532,8.02056854,125.5,125.48,0.05092834]
[1744798815831,0.05146854,125.5,125.48,0.05092834]
[1744798816435,7.9693,125.49,125.48,0.05092834]
[1744798817132,8.02046854,125.5,125.48,0.05092834]
[1744798817534,0.05146854,125.5,125.48,0.05092834]
[1744798817735,7.9693,125.49,125.48,0.05092834]
[1744798818034,0.05146854,125.5,125.48,0.05092834]
[1744798818836,7.9693,125.49,125.48,0.05092834]
[1744798819029,0.05146854,125.5,125.48,0.05092834]
[1744798820328,1.38703442,125.57,125.49,44.13091882]
[1744798820527,195.59709082,125.63,125.54,10.63091882]
[1744798820727,195.59709082,125.63,125.55,33.5]
[1744798820928,7.9622,125.61,125.56,7.9645]
[1744798821529,7.9622,125.61,125.57,0.05228076]
[1744798822035,7.9622,125.61,125.57,8.01658076]
[1744798822234,10.63091882,125.63,125.57,8.01658076]
[1744798822433,10.63091882,125.63,125.57,0.05228076]
[1744798822834,10.63091882,125.61,125.57,0.05228076]
[1744798823236,7.9627,125.6,125.57,0.05228076]
[1744798823535,50.50141362,125.62,125.57,0.05228076]
[1744798823732,58.46311362,125.62,125.57,0.05228076]
[1744798824035,50.50141362,125.62,125.57,0.05228076]
[1744798824237,7.9621,125.61,125.57,0.05228076]
[1744798824535,50.50141362,125.62,125.57,0.05228076]
[1744798824726,7.9621,125.61,125.57,0.05228076]
[1744798824930,50.50141362,125.62,125.57,0.05228076]
[1744798825936,7.9628,125.6,125.57,0.05228076]
[1744798826137,50.50141362,125.62,125.57,0.05228076]
[1744798826437,7.9646,125.57,125.53,7.9665]
[1744798826637,7.9646,125.57,125.49,33.76]
[1744798826638,33.76,125.57,125.49,33.76]
[1744798826838,33.76,125.57,125.48,33.76]
[1744798826839,21.24911362,125.56,125.48,33.76]
[1744798827238,7.9672,125.53,125.49,7.9693]
[1744798827435,21.24911362,125.56,125.48,33.76]
[1744798827632,8.01807485,125.52,125.5,0.05890768]
[1744798827940,0.05027485,125.52,125.5,0.05890768]
[1744798828139,33.76,125.6,125.51,33.76]
[1744798828339,33.76,125.6,125.51,40.005]
[1744798828940,7.9648,125.57,125.53,7.9664]
[1744798829243,7.9648,125.57,125.54,0.05449495]
[1744798829444,7.9648,125.57,125.54,8.02059495]
[1744798829642,7.9648,125.57,125.54,0.05449495]
[1744798830542,33.76,125.6,125.54,0.05449495]
[1744798831245,7.965,125.56,125.54,0.05449495]
[1744798831743,35.7752,125.6,125.54,0.05449495]
[1744798832444,7.9653,125.56,125.54,0.05449495]
[1744798832946,35.7752,125.6,125.54,0.05449495]
[1744798833546,17.00141362,125.59,125.54,0.05449495]
[1744798834045,35.7752,125.6,125.54,0.05449495]
[1744798834646,7.965,125.56,125.54,0.05449495]
[1744798836247,7.9645,125.57,125.54,0.05449495]
[1744798836845,35.7752,125.6,125.54,0.05449495]
[1744798837347,35.7752,125.6,125.55,7.9652]
[1744798837549,35.7752,125.6,125.54,0.05449495]
[1744798837847,7.9633,125.59,125.55,7.9652]
[1744798839249,7.9636,125.58,125.55,7.9652]
[1744798840052,7.9633,125.59,125.55,7.9652]
[1744798840651,7.9639,125.58,125.54,8.02029495]
[1744798840951,7.9639,125.58,125.54,0.05449495]
[1744798841652,7.9639,125.58,125.55,7.9652]
[1744798843750,44.38470006,125.6,125.54,0.05449495]
[1744798843946,10.62470006,125.58,125.54,0.05449495]
[1744798844155,7.9652,125.56,125.54,0.05449495]
[1744798844652,44.38470006,125.6,125.54,0.05449495]
[1744798844854,44.38470006,125.6,125.54,8.02029495]
[1744798845255,7.9641,125.58,125.54,8.02029495]
[1744798845756,7.9643,125.57,125.54,8.02029495]
[1744798846558,7.9643,125.57,125.54,0.05449495]
[1744798847163,10.62470006,125.58,125.54,0.05449495]
[1744798847550,7.9655,125.56,125.54,0.05449495]
[1744798847754,10.62470006,125.58,125.54,0.05449495]
[1744798848760,7.9655,125.55,125.54,0.05449495]
[1744798849861,7.968,125.52,125.46,33.76]
[1744798850361,7.9671,125.53,125.46,33.76]
[1744798850661,17.03020006,125.55,125.46,33.76]
[1744798850862,7.9672,125.53,125.46,33.76]
[1744798851062,0.05291037,125.52,125.49,0.056909]
[1744798851460,7.9683,125.51,125.49,0.056909]
[1744798851759,0.05291037,125.52,125.49,0.056909]
[1744798852163,8.02081037,125.52,125.49,0.056909]
[1744798852363,0.05291037,125.52,125.49,0.056909]
[1744798852663,8.02071037,125.52,125.49,0.056909]
[1744798853160,8.02071037,125.52,125.49,8.026209]
[1744798853364,0.05291037,125.52,125.49,8.026209]
[1744798854564,8.02031037,125.52,125.49,8.026209]
[1744798854962,0.05291037,125.52,125.49,0.056909]
[1744798855263,0.05291037,125.52,125.5,33.04]
[1744798855965,0.05291037,125.52,125.51,7.9681]
[1744798856165,33.04,125.59,125.5,53.77500006]
[1744798856364,33.04,125.59,125.52,10.62470006]
[1744798856864,2.0439,125.61,125.54,10.62470006]
[1744798857065,2.0439,125.61,125.55,33.04]
[1744798857366,7.9632,125.59,125.56,8.01610727]
[1744798857770,7.9632,125.59,125.56,0.05160727]
[1744798858264,7.9637,125.58,125.56,0.05160727]
[1744798858468,12.66860006,125.61,125.56,0.05160727]
[1744798858662,7.964,125.58,125.56,0.05160727]
[1744798860468,7.9643,125.57,125.56,0.05160727]
[1744798861465,10.62470006,125.61,125.56,0.05160727]
[1744798861668,7.964,125.58,125.56,0.05160727]
[1744798863373,33.04,125.62,125.56,0.05160727]
[1744798863670,43.66470006,125.62,125.56,0.05160727]
[1744798864170,7.9634,125.59,125.56,0.05160727]
[1744798864472,43.66470006,125.62,125.56,0.05160727]
[1744798864766,7.9627,125.6,125.56,8.01600727]
[1744798865269,7.963,125.59,125.56,8.01600727]
[1744798867173,7.963,125.59,125.56,0.05160727]
[1744798867873,43.66470006,125.62,125.56,0.05160727]
[1744798868372,7.9642,125.58,125.56,0.05160727]
[1744798868569,10.62470006,125.6,125.56,0.05160727]
[1744798868775,10.62470006,125.58,125.56,0.05160727]
[1744798868974,43.66470006,125.58,125.56,0.05160727]
[1744798869273,43.66470006,125.58,125.48,10.62470006]
[1744798869274,43.66470006,125.58,125.48,33.04]
[1744798869575,10.62470006,125.56,125.48,33.04]
[1744798870073,10.62470006,125.56,125.48,43.66470006]
[1744798870273,7.9659,125.55,125.51,7.9678]
[1744798870467,0.05718951,125.53,125.51,8.02143793]
[1744798870866,0.05718951,125.53,125.51,0.05363793]
[1744798873074,0.05718951,125.53,125.52,7.9674]
[1744798879180,0.05718951,125.53,125.51,0.05363793]
[1744798880388,7.9674,125.52,125.51,0.05363793]
[1744798880589,10.62470006,125.52,125.46,37.2787]
[1744798880780,10.62470006,125.52,125.46,33.04]
[1744798880977,7.9694,125.49,125.46,41.011]
[1744798881782,7.97,125.48,125.46,33.09472127]
[1744798882186,0.05853891,125.49,125.46,0.05472127]
[1744798883588,7.9706,125.47,125.46,0.05472127]
[1744798883982,0.05853891,125.49,125.46,0.05472127]
[1744798884178,8.02813891,125.49,125.46,0.05472127]
[1744798884990,7.9701,125.48,125.46,0.05472127]
[1744798885690,8.02793891,125.49,125.46,8.02582127]
[1744798885890,0.05853891,125.49,125.46,0.05472127]
[1744798886090,7.9704,125.48,125.46,0.05472127]
[1744798889086,7.9706,125.47,125.46,0.05472127]
[1744798889488,10.68323897,125.49,125.4,47.34450006]
[1744798889687,10.62470006,125.49,125.4,47.34450006]
[1744798889903,7.9716,125.46,125.42,7.9732]
[1744798890090,10.62470006,125.47,125.4,36.7198]
[1744798890289,42.92470006,125.47,125.4,36.7198]
[1744798890695,0.05842755,125.45,125.42,0.05594352]
[1744798891091,0.05842755,125.45,125.43,7.9728]
[1744798891689,0.05842755,125.45,125.42,8.02924352]
[1744798892691,0.05842755,125.45,125.43,7.9731]
[1744798892895,0.05842755,125.45,125.42,0.05594352]
[1744798893688,0.05842755,125.45,125.43,7.9728]
[1744798894597,0.05842755,125.45,125.44,7.9725]
[1744798895398,8.03032755,125.45,125.42,0.05594352]
[1744798895589,0.05842755,125.45,125.42,0.05594352]
[1744798895793,7.9726,125.44,125.42,8.02944352]
[1744798895987,0.05842755,125.45,125.42,8.02944352]
[1744798896395,8.03062755,125.45,125.42,8.02944352]
[1744798896999,0.05842755,125.45,125.44,7.9725]
[1744798899903,0.05842755,125.45,125.43,7.9729]
[1744798900305,0.05842755,125.45,125.42,0.05594352]
[1744798901204,0.05842755,125.45,125.42,8.02944352]
[1744798901699,0.05842755,125.45,125.42,0.05594352]
[1744798901907,32.32,125.44,125.42,0.05594352]
[1744798902500,7.9732,125.43,125.42,0.05594352]
[1744798902806,18.59790006,125.43,125.42,0.05594352]
[1744798903803,32.32,125.44,125.42,0.05594352]
[1744798904413,40.2925,125.44,125.42,0.05594352]
[1744798906806,7.9732,125.43,125.42,0.05594352]
[1744798911716,18.59790006,125.43,125.42,0.05594352]
[1744798912014,7.9744,125.42,125.37,32.32]
[1744798912414,10.62470006,125.43,125.38,7.976]
[1744798912714,7.9745,125.41,125.38,7.976]
[1744798913217,7.9755,125.4,125.38,0.05322164]
[1744798913413,0.05120919,125.41,125.38,0.05322164]
[1744798913914,8.02600919,125.41,125.38,8.02922164]
[1744798914115,0.05120919,125.41,125.38,0.05322164]
[1744798914415,0.05120919,125.41,125.4,7.9751]
[1744798920322,31.54,125.47,125.4,31.54]
[1744798920519,4.0999,125.51,125.44,10.62470006]
[1744798920822,31.54,125.52,125.44,42.16470006]
[1744798921422,0.05543573,125.49,125.47,8.02562128]
[1744798921620,0.05543573,125.49,125.47,0.05502128]
[1744798922119,0.05543573,125.49,125.48,7.97]
[1744798922828,16.90620006,125.55,125.52,7.9674]
[1744798922829,31.54,125.55,125.52,7.9674]
[1744798923319,31.54,125.55,125.53,7.9668]
[1744798923920,111.36556668,125.57,125.52,10.62470006]
[1744798924220,0.05598698,125.55,125.53,0.06054074]
[1744798925021,0.05598698,125.55,125.54,7.9662]
[1744798925520,8.02188698,125.55,125.53,0.06054074]
[1744798926522,7.9662,125.54,125.53,0.06054074]
[1744798926728,18.59090006,125.54,125.53,0.06054074]
[1744798927025,10.62470006,125.54,125.48,35.7682]
[1744798927728,10.62470006,125.52,125.45,31.52]
[1744798927928,42.14470006,125.52,125.45,31.52]
[1744798928120,0.05477382,125.5,125.47,0.05608472]
[1744798928625,8.02387382,125.5,125.47,0.05608472]
[1744798928822,0.05477382,125.5,125.47,0.05608472]
[1744798929121,0.05477382,125.5,125.49,7.9693]
[1744798929824,0.05477382,125.5,125.48,7.9698]
[1744798932629,0.05477382,125.5,125.49,7.9693]
[1744798934131,0.05477382,125.5,125.48,7.9697]
[1744798934631,0.05477382,125.5,125.49,7.9693]
[1744798935127,7.9659,125.55,125.51,7.9675]
[1744798935334,7.9659,125.55,125.49,31.52]
[1744798936124,7.9662,125.54,125.51,7.9676]
[1744798936328,0.05032865,125.53,125.51,8.0181923]
[1744798940131,0.05032865,125.53,125.52,7.9674]
[1744798944540,0.05032865,125.53,125.52,39.4874]
[1744798944736,7.964,125.58,125.55,7.9654]
[1744798945040,33.5911,125.6,125.52,31.52]
[1744798945239,7.9633,125.59,125.56,7.9646]
[1744798945940,8.01694383,125.59,125.56,8.02131778]
[1744798947543,8.01694383,125.59,125.57,7.9641]
[1744798948542,0.05364383,125.59,125.57,7.9641]
[1744798950040,0.05364383,125.59,125.58,7.9636]
[1744798950838,35.4479,125.66,125.6,7.9621]
[1744798951040,7.9602,125.64,125.58,31.24]
[1744798951742,7.9605,125.63,125.58,31.24]
[1744798951944,10.62470006,125.63,125.58,31.24]
[1744798952146,7.9615,125.62,125.59,0.05573723]
[1744798952340,31.24,125.63,125.59,0.05573723]
[1744798952844,39.2008,125.63,125.59,0.05573723]
[1744798953346,7.9595,125.65,125.59,0.05573723]
[1744798953645,35.4479,125.66,125.59,0.05573723]
[1744798953846,35.4479,125.66,125.59,2.24053723]
[1744798954141,7.9595,125.65,125.59,2.24053723]
[1744798954447,35.4479,125.66,125.59,2.24053723]
[1744798954647,31.24,125.66,125.59,4.39993723]
[1744798955149,39.199,125.66,125.59,4.39993723]
[1744798955545,7.9594,125.65,125.59,4.39993723]
[1744798956049,7.9594,125.65,125.62,7.9608]
[1744798956242,31.24,125.66,125.59,4.3442]
[1744798956443,31.24,125.66,125.61,0.05619332]
[1744798956639,7.9596,125.65,125.62,7.9606]
[1744798957951,31.24,125.66,125.63,7.9604]
[1744798957952,39.1988,125.66,125.63,7.9604]
[1744798958349,31.24,125.66,125.61,0.05619332]
[1744798958549,7.9593,125.65,125.62,7.9608]
[1744798958955,31.24,125.66,125.61,0.05619332]
[1744798959153,7.9602,125.64,125.61,8.01769332]
[1744798960249,31.24,125.66,125.61,0.05619332]
[1744798960650,31.24,125.66,125.63,7.9601]
[1744798960949,39.1989,125.66,125.61,0.05619332]
[1744798961962,39.1989,125.66,125.63,7.9601]
[1744798963865,7.9592,125.65,125.63,7.9601]
[1744798964166,31.24,125.66,125.62,7.9607]
[1744798964361,31.24,125.66,125.61,0.05619332]
[1744798964562,7.96,125.64,125.61,0.05619332]
[1744798964967,7.96,125.64,125.61,8.01759332]
[1744798965167,7.9606,125.63,125.61,0.05619332]
[1744798965468,41.86470006,125.66,125.61,0.05619332]
[1744798966668,10.62470006,125.64,125.61,0.05619332]
[1744798966969,2.0795,125.65,125.61,0.05619332]
[1744798967266,31.24,125.66,125.61,0.05619332]
[1744798967669,7.9597,125.65,125.62,7.9606]
[1744798968468,7.9599,125.64,125.61,8.01759332]
[1744798968771,41.86470006,125.66,125.61,0.05619332]
[1744798969568,7.9611,125.62,125.61,0.05619332]
[1744798969769,31.24,125.67,125.55,6.3369]
[1744798969973,10.62470006,125.64,125.58,31.24]
[1744798970267,7.9606,125.63,125.58,31.24]
[1744798970659,7.9615,125.62,125.58,31.24]
[1744798970858,8.01776902,125.62,125.59,0.05925911]
[1744798971159,10.68096908,125.62,125.59,0.05925911]
[1744798971868,7.9622,125.61,125.59,0.05925911]
[1744798972071,31.24,125.61,125.48,15.9399]
[1744798972268,7.9636,125.59,125.55,7.9652]
[1744798972469,7.9636,125.59,125.52,31.24]
[1744798972770,7.9633,125.59,125.55,7.9653]
[1744798972966,1.38570888,125.67,125.55,41.86470006]
[1744798973273,0.0554709,125.62,125.6,8.01956657]
[1744798973469,7.9602,125.64,125.6,8.01956657]
[1744798973666,0.05156593,125.62,125.6,8.01956657]
[1744798974067,0.05156593,125.62,125.61,7.9617]
[1744798978272,1.38559853,125.68,125.67,7.9579]
[1744798978469,7.9549,125.72,125.62,2.1768]
[1744798978669,10.62470006,125.73,125.62,2.1768]
[1744798978875,2.0416,125.71,125.65,7.9588]
[1744798979373,4.1583,125.71,125.65,39.1189]
[1744798979573,0.05134595,125.69,125.67,0.05927651]
[1744798981474,0.05134595,125.69,125.68,69.9573]
[1744798982778,2.009,125.75,125.68,72.62470006]
[1744798983078,2.009,125.75,125.68,76.79400006]
[1744798983278,10.62470006,125.78,125.69,31.16]
[1744798983478,12.79340006,125.76,125.68,31.16]
[1744798983675,7.9539,125.74,125.7,7.9556]
[1744798983876,0.03021617,125.73,125.71,0.06085141]
[1744798984472,0.03021617,125.73,125.64,12.78290006]
[1744798984778,10.62470006,125.72,125.64,31.16]
[1744798985079,10.62470006,125.73,125.69,7.9562]
[1744798985279,10.62470006,125.73,125.64,31.16]
[1744798985478,10.62470006,125.71,125.64,31.16]
[1744798985678,0.05330621,125.7,125.67,0.05472463]
[1744798986179,0.05330621,125.7,125.68,7.9573]
[1744798986378,0.05330621,125.7,125.67,0.05472463]
[1744798987175,0.05330621,125.7,125.69,7.9567]
[1744798988977,2.1687,125.76,125.69,41.78470006]
[1744798989281,2.1687,125.76,125.69,31.16]
[1744798989480,7.9536,125.74,125.71,7.9553]
[1744798989978,7.9536,125.74,125.71,8.01024338]
[1744798990179,7.99136137,125.74,125.71,8.01024338]
[1744798990378,7.9543,125.73,125.71,0.05494338]
[1744798990683,0.03776137,125.74,125.71,0.05494338]
[1744798990874,7.99166137,125.74,125.71,0.05494338]
[1744798991079,0.03776137,125.74,125.71,8.01024338]
[1744798992283,0.03776137,125.74,125.71,0.05494338]
[1744798992487,0.03776137,125.74,125.72,10.62470006]
[1744798992675,31.16,125.8,125.72,10.62470006]
[1744798992879,7.9507,125.79,125.72,10.62470006]
[1744798993081,31.16,125.8,125.72,12.78340006]
[1744798993281,31.16,125.8,125.74,10.62470006]
[1744798993485,39.1101,125.8,125.76,7.952]
[1744798993674,31.16,125.8,125.74,31.16]
[1744798993874,31.16,125.8,125.77,0.05831045]
[1744798994082,7.9503,125.79,125.77,0.05831045]
[1744798994878,7.951,125.78,125.77,0.05831045]
[1744798995084,31.16,125.8,125.77,0.05831045]
[1744798995380,41.78470006,125.8,125.77,0.05831045]
[1744798995585,10.62470006,125.78,125.71,31.16]
[1744798995784,10.62470006,125.76,125.71,7.9554]
[1744798995983,7.9532,125.75,125.71,7.9554]
[1744798996383,10.62470006,125.76,125.7,7.9558]
[1744798996587,14.97810006,125.76,125.69,31.14]
[1744798996883,0.05332212,125.74,125.72,0.05922507]
[1744798997084,8.00712212,125.74,125.72,0.05922507]
[1744798998187,7.9541,125.73,125.72,0.05922507]
[1744798998484,0.05332212,125.74,125.72,0.05922507]
[1744798998676,39.14732212,125.74,125.72,0.05922507]
[1744798999087,31.19332212,125.74,125.72,0.05922507]
[1744799000388,39.14742212,125.74,125.72,0.05922507]
[1744799001287,7.9541,125.73,125.72,0.05922507]
[1744799001585,31.19332212,125.74,125.72,0.05922507]
[1744799002186,0.05332212,125.74,125.72,0.05922507]
[1744799002391,0.05332212,125.74,125.72,10.68392513]
[1744799002585,32.44,125.8,125.72,10.68392513]
[1744799002787,32.44,125.8,125.72,14.81920006]
[1744799002985,40.3899,125.8,125.76,7.9517]
[1744799003179,40.3899,125.8,125.74,10.62470006]
[1744799003589,40.3899,125.8,125.76,7.9517]
[1744799003789,40.3899,125.8,125.76,8.00353384]
[1744799004691,40.3899,125.8,125.77,7.9515]
[1744799005185,32.44,125.8,125.77,7.9515]
[1744799005393,32.44,125.83,125.76,0.05183384]
[1744799005584,32.44,125.83,125.75,32.44]
[1744799005787,7.9498,125.8,125.78,0.05239224]
[1744799006187,32.44,125.83,125.78,0.05239224]
[1744799006388,7.9488,125.82,125.78,8.00299224]
[1744799006893,49.38130795,125.85,125.78,8.00299224]
[1744799007394,7.9479,125.83,125.78,0.05239224]
[1744799007694,7.9479,125.83,125.79,7.95]
[1744799008090,7.9486,125.82,125.79,7.95]
[1744799008290,32.44,125.85,125.79,7.95]
[1744799008491,32.44,125.85,125.79,32.49979052]
[1744799009184,40.3868,125.85,125.79,32.49979052]
[1744799009384,55.52850795,125.88,125.82,7.948]
[1744799009794,7.9464,125.86,125.84,0.0561861]
[1744799009994,32.44,125.88,125.84,0.0561861]
[1744799010191,38.751,125.92,125.84,0.0561861]
[1744799010498,32.44,125.92,125.88,7.9443]
[1744799010694,32.44,125.92,125.87,0.05157552]
[1744799010893,7.9431,125.91,125.87,0.05157552]
[1744799011191,32.44,125.92,125.87,0.05157552]
[1744799011390,49.38130795,125.92,125.87,0.05157552]
[1744799011884,7.9447,125.88,125.87,0.05157552]
[1744799013196,7.9473,125.84,125.8,6.3857]
[1744799013888,7.9473,125.84,125.8,14.3351]
[1744799014092,32.44,125.88,125.8,2.0708]
[1744799014294,0.0515049,125.83,125.81,0.05389208]
[1744799014494,16.94130795,125.86,125.81,0.05389208]
[1744799014687,0.05656385,125.83,125.81,8.00279208]
[1744799014896,0.05656385,125.83,125.81,0.05389208]
[1744799015792,7.9484,125.82,125.81,0.05389208]
[1744799017196,8.00466385,125.83,125.81,0.05389208]
[1744799017396,0.05656385,125.83,125.81,0.05389208]
[1744799018499,7.9484,125.82,125.81,0.05389208]
[1744799019599,0.05656385,125.83,125.74,36.7473]
[1744799019799,49.36130795,125.84,125.76,7.9519]
[1744799020094,7.9502,125.8,125.76,7.9519]
[1744799020293,49.36130795,125.84,125.75,2.2029]
[1744799020698,8.00832296,125.81,125.78,0.05938121]
[1744799021800,7.9498,125.8,125.78,0.05938121]
[1744799024396,0.05922296,125.81,125.78,0.05938121]
[1744799024794,0.05922296,125.81,125.79,7.95]
[1744799025001,0.05922296,125.81,125.78,0.05938121]
[1744799025403,7.9503,125.8,125.78,0.05938121]
[1744799025598,10.64801261,125.81,125.78,0.05938121]
[1744799025800,0.05922296,125.81,125.78,0.05938121]
[1744799026001,7.9501,125.8,125.78,0.05938121]
[1744799026200,0.05922296,125.81,125.78,0.05938121]
[1744799027005,8.00862296,125.81,125.78,8.01028121]
[1744799027904,0.05922296,125.81,125.78,0.05938121]
[1744799028505,7.9501,125.8,125.78,0.05938121]
[1744799028903,10.64801261,125.81,125.78,0.05938121]
[1744799029205,7.9516,125.77,125.74,7.9532]
[1744799030206,8.00831346,125.77,125.74,8.00750011]
[1744799030705,0.05671346,125.77,125.75,7.9527]
[1744799031102,0.05671346,125.77,125.74,10.64308976]
[1744799031604,0.05671346,125.77,125.74,0.05430011]
[1744799032006,7.9529,125.75,125.74,0.05430011]
[1744799034105,7.9551,125.72,125.69,32.66]
[1744799034508,2.0842,125.75,125.71,7.9548]
[1744799034707,7.9537,125.74,125.71,7.9548]
[1744799035203,7.9531,125.75,125.71,7.9548]
[1744799035404,0.05058768,125.74,125.72,7.9548]
[1744799035604,0.05058768,125.74,125.71,0.05266319]
[1744799036012,8.00418768,125.74,125.71,8.00776319]
[1744799036509,8.00418768,125.74,125.71,0.05266319]
[1744799036710,7.9542,125.73,125.71,0.05266319]
[1744799036910,0.05058768,125.74,125.71,0.05266319]
[1744799037109,7.9545,125.73,125.71,0.05266319]
[1744799037408,0.05058768,125.74,125.71,0.05266319]
[1744799038410,7.9545,125.73,125.71,0.05266319]
[1744799038607,0.05058768,125.74,125.71,0.05266319]
[1744799039014,8.00438768,125.74,125.71,0.05266319]
[1744799041012,8.00438768,125.74,125.71,8.00796319]
[1744799042110,0.05058768,125.74,125.71,0.05266319]
[1744799042512,7.9544,125.73,125.71,0.05266319]
[1744799044309,8.00418768,125.74,125.71,0.05266319]
[1744799044812,8.00418768,125.74,125.71,8.00786319]
[1744799046117,0.05058768,125.74,125.72,7.9547]
[1744799046506,0.05058768,125.74,125.71,0.05266319]
[1744799046712,8.00458768,125.74,125.71,0.05266319]
[1744799047210,8.00458768,125.74,125.71,8.00796319]
[1744799048414,7.9542,125.73,125.71,0.05266319]
[1744799048816,0.05058768,125.74,125.71,0.05266319]
[1744799049011,7.9546,125.73,125.71,0.05266319]
[1744799049216,0.05058768,125.74,125.71,0.05266319]
[1744799050918,2.12008768,125.74,125.71,0.05266319]
[1744799051217,7.9548,125.72,125.71,0.05266319]
[1744799053215,49.6366386,125.72,125.62,6.3751]
[1744799053416,51.02160298,125.72,125.62,6.3751]
[1744799053621,16.9566386,125.69,125.62,6.3751]
[1744799053915,32.68,125.68,125.62,6.3751]
[1744799054119,7.9582,125.67,125.63,7.9601]
[1744799054315,0.05908306,125.66,125.64,0.053337]
[1744799055418,0.05908306,125.66,125.65,7.9592]
[1744799059324,0.05908306,125.66,125.64,0.053337]
[1744799059515,10.66962821,125.66,125.64,0.053337]
[1744799059716,7.9592,125.65,125.64,0.053337]
[1744799060821,18.62852821,125.66,125.64,0.053337]
[1744799061216,7.9592,125.65,125.64,0.053337]
[1744799063122,0.05908306,125.66,125.64,0.053337]
[1744799063720,0.05908306,125.66,125.64,8.012837]
[1744799064621,0.05908306,125.66,125.65,7.9592]
[1744799065021,0.05908306,125.66,125.64,0.053337]
[1744799065221,0.05908306,125.66,125.64,8.012837]
[1744799065922,8.01768306,125.66,125.64,0.053337]